[Event "Sera di Lampi"]
[Site "Chess.com"]
[Date "2020.04.18"]
[Round "3"]
[White "ottovolante"]
[Black "mr6701"]
[Result "0-1"]
[WhiteElo "1159"]
[BlackElo "1977"]
[TimeControl "300+2"]
[EndTime "12:07:47 PDT"]
[Termination "mr6701 ha vinto per tempo"]

1. d4 {[%clk 0:04:56.8]} 1... d5 {[%clk 0:05:00.9]} 2. Nc3 {[%clk 0:04:50.8]}
2... Nf6 {[%clk 0:05:00.3]} 3. Nf3 {[%clk 0:04:48.6]} 3... e6 {[%clk 0:05:01.3]}
4. Bf4 {[%clk 0:04:41.6]} 4... Bb4 {[%clk 0:04:58.9]} 5. a3 {[%clk 0:04:34.6]}
5... Ba5 {[%clk 0:04:57.5]} 6. e3 {[%clk 0:03:42.7]} 6... Ne4 {[%clk 0:04:49]}
7. b4 {[%clk 0:03:03.5]} 7... Nxc3 {[%clk 0:04:48.7]} 8. bxa5 {[%clk 0:03:02.7]}
8... Nxd1 {[%clk 0:04:49]} 9. Kxd1 {[%clk 0:03:03.1]} 9... c5 {[%clk 0:04:44.3]}
10. dxc5 {[%clk 0:02:50.3]} 10... O-O {[%clk 0:04:43.9]} 11. Bd6 {[%clk
0:02:46.5]} 11... Re8 {[%clk 0:04:44.5]} 12. Ne5 {[%clk 0:02:46.3]} 12... Qxa5
{[%clk 0:04:42.4]} 13. Bd3 {[%clk 0:02:06.9]} 13... Nd7 {[%clk 0:04:36.5]} 14.
Nxd7 {[%clk 0:02:02.7]} 14... Bxd7 {[%clk 0:04:38.4]} 15. Ke2 {[%clk 0:01:59.5]}
15... b6 {[%clk 0:04:37.2]} 16. Kf3 {[%clk 0:01:47.1]} 16... bxc5 {[%clk
0:04:37.2]} 17. Rhb1 {[%clk 0:01:40.8]} 17... c4 {[%clk 0:04:37.2]} 18. Bb4
{[%clk 0:01:39]} 18... Qc7 {[%clk 0:04:36.2]} 19. Be2 {[%clk 0:01:28.4]} 19...
e5 {[%clk 0:04:32.9]} 20. g3 {[%clk 0:01:25.9]} 20... Bh3 {[%clk 0:04:31.7]} 21.
Bf1 {[%clk 0:01:19.8]} 21... e4+ {[%clk 0:04:23.7]} 22. Ke2 {[%clk 0:01:19.9]}
22... Bg4+ {[%clk 0:04:24.4]} 23. Ke1 {[%clk 0:01:17.1]} 23... d4 {[%clk
0:04:22.7]} 24. a4 {[%clk 0:01:00.2]} 24... d3 {[%clk 0:04:19.9]} 25. cxd3
{[%clk 0:00:56]} 25... exd3 {[%clk 0:04:19.5]} 26. Bc3 {[%clk 0:00:51.2]} 26...
Rab8 {[%clk 0:04:17]} 27. h3 {[%clk 0:00:42.4]} 27... Bf3 {[%clk 0:04:16.4]} 28.
Kd2 {[%clk 0:00:37.7]} 28... Rxb1 {[%clk 0:04:14.4]} 29. Rxb1 {[%clk 0:00:37.1]}
29... Rb8 {[%clk 0:04:16.3]} 30. Rxb8+ {[%clk 0:00:27.5]} 30... Qxb8 {[%clk
0:04:17.1]} 31. a5 {[%clk 0:00:21.5]} 31... Qb3 {[%clk 0:04:15.4]} 32. e4 {[%clk
0:00:21.2]} 32... Bxe4 {[%clk 0:04:12.6]} 33. g4 {[%clk 0:00:18.5]} 33... g5
{[%clk 0:04:03.4]} 34. f4 {[%clk 0:00:13.2]} 34... gxf4 {[%clk 0:04:03.3]} 35.
g5 {[%clk 0:00:12.9]} 35... Qa2+ {[%clk 0:03:55.8]} 36. Ke1 {[%clk 0:00:09.5]}
36... f3 {[%clk 0:03:53.1]} 37. Bd2 {[%clk 0:00:06]} 37... f2+ {[%clk
0:03:47.8]} 38. Kxf2 {[%clk 0:00:06]} 38... Qxd2+ {[%clk 0:03:48.6]} 39. Kg1
{[%clk 0:00:06.7]} 39... Qe3+ {[%clk 0:03:47.8]} 40. Kh2 {[%clk 0:00:04.2]}
40... c3 {[%clk 0:03:42.7]} 41. Bg2 {[%clk 0:00:02.4]} 41... Qe2 {[%clk
0:03:39.3]} 0-1

[Event "Sera di Lampi"]
[Site "Chess.com"]
[Date "2020.04.18"]
[Round "3"]
[White "rob_fio"]
[Black "crippo"]
[Result "1/2-1/2"]
[WhiteElo "1654"]
[BlackElo "1573"]
[TimeControl "300+2"]
[EndTime "12:07:59 PDT"]
[Termination "Patta d'accordo"]

1. d4 {[%clk 0:05:00]} 1... d5 {[%clk 0:04:59.8]} 2. e3 {[%clk 0:05:01]} 2... e6
{[%clk 0:05:00.3]} 3. Bd3 {[%clk 0:05:02.3]} 3... Nf6 {[%clk 0:05:01.2]} 4. f4
{[%clk 0:05:03.5]} 4... Bd6 {[%clk 0:05:01.7]} 5. Nf3 {[%clk 0:05:04.8]} 5... c6
{[%clk 0:04:54.9]} 6. Nbd2 {[%clk 0:05:05.3]} 6... Nbd7 {[%clk 0:04:54.9]} 7.
O-O {[%clk 0:05:06.3]} 7... Qc7 {[%clk 0:04:52.7]} 8. c3 {[%clk 0:05:06]} 8...
Nf8 {[%clk 0:04:51.5]} 9. Ne5 {[%clk 0:05:06.8]} 9... Ng6 {[%clk 0:04:47.8]} 10.
Ndf3 {[%clk 0:05:07.7]} 10... Qe7 {[%clk 0:04:21.4]} 11. a3 {[%clk 0:05:05.4]}
11... Nd7 {[%clk 0:04:20]} 12. Nxd7 {[%clk 0:05:01.8]} 12... Bxd7 {[%clk
0:04:19.4]} 13. Ne5 {[%clk 0:05:03.2]} 13... Bc8 {[%clk 0:04:16.4]} 14. Qf3
{[%clk 0:05:02.6]} 14... O-O {[%clk 0:04:08.2]} 15. Qg3 {[%clk 0:04:47.4]} 15...
Bxe5 {[%clk 0:04:02.4]} 16. fxe5 {[%clk 0:04:43.8]} 16... Qh4 {[%clk 0:03:56.1]}
17. Qf3 {[%clk 0:04:35.3]} 17... f5 {[%clk 0:03:44.4]} 18. Bd2 {[%clk
0:04:27.5]} 18... Bd7 {[%clk 0:03:39.6]} 19. Be1 {[%clk 0:04:28.3]} 19... Qg5
{[%clk 0:03:34.4]} 20. Be2 {[%clk 0:04:17.4]} 20... Rf7 {[%clk 0:03:32.1]} 21.
Qh5 {[%clk 0:04:10.3]} 21... Qe7 {[%clk 0:03:28.4]} 22. Qh3 {[%clk 0:03:57.9]}
22... Raf8 {[%clk 0:02:47.4]} 23. Bh5 {[%clk 0:03:57.5]} 23... Qg5 {[%clk
0:02:42.5]} 24. Bxg6 {[%clk 0:03:54]} 24... Qxg6 {[%clk 0:02:43.2]} 25. Qg3
{[%clk 0:03:53.6]} 25... Qh6 {[%clk 0:02:38.6]} 26. Rf3 {[%clk 0:03:44.9]} 26...
f4 {[%clk 0:02:35.6]} 27. exf4 {[%clk 0:03:37.3]} 27... Rxf4 {[%clk 0:02:35.5]}
28. Rxf4 {[%clk 0:03:27.1]} 28... Qxf4 {[%clk 0:02:34.3]} 29. Qxf4 {[%clk
0:03:27.9]} 29... Rxf4 {[%clk 0:02:33.9]} 30. Bg3 {[%clk 0:03:28]} 30... Rf5
{[%clk 0:02:31.2]} 31. h3 {[%clk 0:03:28.9]} 31... Be8 {[%clk 0:02:30.1]} 32.
Rf1 {[%clk 0:03:29.2]} 32... Rxf1+ {[%clk 0:02:04.2]} 33. Kxf1 {[%clk
0:03:31.1]} 33... Kf7 {[%clk 0:02:05]} 34. Kf2 {[%clk 0:03:30.6]} 34... Kg6
{[%clk 0:02:05.8]} 35. h4 {[%clk 0:03:29.2]} 35... Kf5 {[%clk 0:02:06.3]} 36.
Ke3 {[%clk 0:03:29.5]} 36... h6 {[%clk 0:02:05.1]} 37. Kf3 {[%clk 0:03:24]}
37... g5 {[%clk 0:02:05]} 38. hxg5 {[%clk 0:03:24.2]} 38... hxg5 {[%clk
0:02:06]} 39. Be1 {[%clk 0:03:16.9]} 39... Bh5+ {[%clk 0:02:05.2]} 40. Ke3
{[%clk 0:03:11.6]} 40... Kg4 {[%clk 0:02:05.6]} 41. g3 {[%clk 0:03:09.8]} 41...
Kh3 {[%clk 0:02:03.1]} 42. Kf2 {[%clk 0:03:08]} 42... Bg4 {[%clk 0:02:03.2]} 43.
Bd2 {[%clk 0:03:07.8]} 43... Bf5 {[%clk 0:01:55.2]} 44. Bxg5 {[%clk 0:03:06.7]}
44... Kg4 {[%clk 0:01:56.3]} 45. Bd8 {[%clk 0:03:05.6]} 45... a6 {[%clk
0:01:57.2]} 46. b3 {[%clk 0:02:58]} 46... b5 {[%clk 0:01:53.8]} 47. Be7 {[%clk
0:02:57.8]} 47... Be4 {[%clk 0:01:52.7]} 48. b4 {[%clk 0:02:45.8]} 48... Bc2
{[%clk 0:01:52.6]} 49. Bh4 {[%clk 0:02:42.7]} 49... Be4 {[%clk 0:01:52.6]} 50.
Ke3 {[%clk 0:02:40.4]} 50... Bc2 {[%clk 0:01:52.1]} 51. Kd2 {[%clk 0:02:41.3]}
51... Be4 {[%clk 0:01:52.3]} 52. Kc1 {[%clk 0:02:41.6]} 52... Bd3 {[%clk
0:01:52.8]} 53. Kd2 {[%clk 0:02:41.8]} 53... Be4 {[%clk 0:01:53.6]} 1/2-1/2

[Event "Sera di Lampi"]
[Site "Chess.com"]
[Date "2020.04.18"]
[Round "3"]
[White "BAKR1980"]
[Black "sirmale49"]
[Result "1-0"]
[WhiteElo "1571"]
[BlackElo "1380"]
[TimeControl "300+2"]
[EndTime "12:08:08 PDT"]
[Termination "BAKR1980 ha vinto per tempo"]

1. e4 {[%clk 0:05:01.9]} 1... e5 {[%clk 0:04:59.6]} 2. Nf3 {[%clk 0:05:02.2]}
2... Nc6 {[%clk 0:05:00.6]} 3. Bc4 {[%clk 0:05:02.6]} 3... Nd4 {[%clk
0:05:01.4]} 4. Nxe5 {[%clk 0:05:02.8]} 4... Qg5 {[%clk 0:05:01.2]} 5. Bxf7+
{[%clk 0:05:02.5]} 5... Ke7 {[%clk 0:05:01.2]} 6. O-O {[%clk 0:05:03.9]} 6...
Qxe5 {[%clk 0:04:59.4]} 7. Bxg8 {[%clk 0:05:04.3]} 7... Rxg8 {[%clk 0:04:59.1]}
8. c3 {[%clk 0:05:04.1]} 8... Ne6 {[%clk 0:04:50.5]} 9. d4 {[%clk 0:05:04.3]}
9... Qxe4 {[%clk 0:04:49.3]} 10. Re1 {[%clk 0:04:56.8]} 10... Qd5 {[%clk
0:04:49.5]} 11. Re5 {[%clk 0:04:51.4]} 11... Qc4 {[%clk 0:04:13.5]} 12. Nd2
{[%clk 0:04:33.1]} 12... Qa6 {[%clk 0:04:08.9]} 13. d5 {[%clk 0:04:30]} 13... d6
{[%clk 0:04:06.4]} 14. Re1 {[%clk 0:04:11.7]} 14... Kd8 {[%clk 0:03:59]} 15.
dxe6 {[%clk 0:04:11.3]} 15... Be7 {[%clk 0:03:55.8]} 16. Nf3 {[%clk 0:04:03.8]}
16... Rf8 {[%clk 0:03:41.1]} 17. Bg5 {[%clk 0:03:59]} 17... h6 {[%clk
0:03:37.7]} 18. Bxe7+ {[%clk 0:03:58.7]} 18... Kxe7 {[%clk 0:03:38.4]} 19. Nh4
{[%clk 0:03:50.4]} 19... Rf6 {[%clk 0:02:43.2]} 20. Qg4 {[%clk 0:03:45.5]} 20...
g5 {[%clk 0:02:09.2]} 21. Nf5+ {[%clk 0:03:38.5]} 21... Ke8 {[%clk 0:01:53.9]}
22. Rad1 {[%clk 0:03:26.9]} 22... Qa5 {[%clk 0:01:21.8]} 23. Ng7+ {[%clk
0:03:20.3]} 23... Ke7 {[%clk 0:01:17.5]} 24. Qh5 {[%clk 0:03:13.7]} 24... Qb5
{[%clk 0:00:43]} 25. c4 {[%clk 0:02:54.6]} 25... Qc6 {[%clk 0:00:33.1]} 26. b4
{[%clk 0:02:48.6]} 26... Bxe6 {[%clk 0:00:25.7]} 27. Nxe6 {[%clk 0:02:43.6]}
27... Rxe6 {[%clk 0:00:21.3]} 28. Qxh6 {[%clk 0:02:32.6]} 1-0

[Event "Sera di Lampi"]
[Site "Chess.com"]
[Date "2020.04.18"]
[Round "3"]
[White "pedrak"]
[Black "SanSecondoPR"]
[Result "1-0"]
[WhiteElo "2062"]
[BlackElo "1297"]
[TimeControl "300+2"]
[EndTime "12:08:55 PDT"]
[Termination "pedrak ha vinto per tempo"]

1. d4 {[%clk 0:05:01.9]} 1... d5 {[%clk 0:04:59.6]} 2. Nf3 {[%clk 0:05:01.5]}
2... Bg4 {[%clk 0:04:57.6]} 3. Ne5 {[%clk 0:04:59.3]} 3... Be6 {[%clk
0:04:53.9]} 4. Bf4 {[%clk 0:04:58]} 4... Nc6 {[%clk 0:04:48.4]} 5. c3 {[%clk
0:04:58.2]} 5... Nf6 {[%clk 0:04:39.5]} 6. Nd2 {[%clk 0:04:57]} 6... g6 {[%clk
0:04:30.4]} 7. e3 {[%clk 0:04:55.6]} 7... Bg7 {[%clk 0:04:29.6]} 8. Be2 {[%clk
0:04:55.5]} 8... O-O {[%clk 0:04:28.5]} 9. O-O {[%clk 0:04:55]} 9... Nd7 {[%clk
0:04:10.3]} 10. Nxc6 {[%clk 0:04:33.7]} 10... bxc6 {[%clk 0:04:08.8]} 11. b4
{[%clk 0:04:34.1]} 11... Nb6 {[%clk 0:03:49.4]} 12. Qc2 {[%clk 0:04:17.2]} 12...
Qc8 {[%clk 0:03:41.3]} 13. Nb3 {[%clk 0:04:12]} 13... Bf5 {[%clk 0:03:37.8]} 14.
Qd2 {[%clk 0:04:09]} 14... Nd7 {[%clk 0:03:24.3]} 15. Nc5 {[%clk 0:04:06.9]}
15... Nxc5 {[%clk 0:03:18.2]} 16. bxc5 {[%clk 0:04:07.1]} 16... Qe6 {[%clk
0:03:10.8]} 17. Bxc7 {[%clk 0:03:56.9]} 17... Qf6 {[%clk 0:02:56.3]} 18. Bd3
{[%clk 0:03:47.3]} 18... e6 {[%clk 0:02:50.1]} 19. Bxf5 {[%clk 0:03:45.6]} 19...
Qxf5 {[%clk 0:02:42.8]} 20. Rab1 {[%clk 0:03:44.8]} 20... Rac8 {[%clk
0:02:28.8]} 21. Bg3 {[%clk 0:03:43.9]} 21... h5 {[%clk 0:02:13.4]} 22. h3 {[%clk
0:03:41.6]} 22... g5 {[%clk 0:02:09.9]} 23. Rb7 {[%clk 0:03:40]} 23... h4 {[%clk
0:01:58.1]} 24. Bd6 {[%clk 0:03:37.8]} 24... Rfe8 {[%clk 0:01:51]} 25. Rxa7
{[%clk 0:03:35.3]} 25... g4 {[%clk 0:01:49.2]} 26. hxg4 {[%clk 0:03:30.9]} 26...
Qxg4 {[%clk 0:01:44.6]} 27. Qd1 {[%clk 0:03:25.8]} 27... Qg6 {[%clk 0:01:39.9]}
28. Qf3 {[%clk 0:03:22.9]} 28... Bf6 {[%clk 0:00:54.6]} 29. Ra1 {[%clk
0:02:56.5]} 29... Kg7 {[%clk 0:00:49.4]} 30. a4 {[%clk 0:02:50.9]} 30... Rh8
{[%clk 0:00:46.3]} 31. Qh3 {[%clk 0:02:44.1]} 31... Rh5 {[%clk 0:00:23.9]} 32.
f4 {[%clk 0:02:10.5]} 32... Qe4 {[%clk 0:00:04.3]} 33. Rb7 {[%clk 0:01:54.3]}
1-0

[Event "Sera di Lampi"]
[Site "Chess.com"]
[Date "2020.04.18"]
[Round "4"]
[White "pedrak"]
[Black "ottovolante"]
[Result "1-0"]
[WhiteElo "2062"]
[BlackElo "1159"]
[TimeControl "300+2"]
[EndTime "12:12:54 PDT"]
[Termination "pedrak ha vinto per scaccomatto"]

1. d4 {[%clk 0:04:59.1]} 1... e6 {[%clk 0:04:55.9]} 2. Nf3 {[%clk 0:04:59.2]}
2... d5 {[%clk 0:04:54.7]} 3. Bf4 {[%clk 0:04:59.2]} 3... Nc6 {[%clk 0:04:55.1]}
4. c3 {[%clk 0:04:59.2]} 4... Nf6 {[%clk 0:04:55.4]} 5. e3 {[%clk 0:04:59.3]}
5... Bd6 {[%clk 0:04:52.2]} 6. Bg3 {[%clk 0:04:59.1]} 6... Bxg3 {[%clk
0:04:52.4]} 7. hxg3 {[%clk 0:04:59.6]} 7... Ne4 {[%clk 0:04:37.1]} 8. Nbd2
{[%clk 0:04:59.1]} 8... Nxd2 {[%clk 0:04:31.4]} 9. Qxd2 {[%clk 0:04:58.9]} 9...
f6 {[%clk 0:04:32.4]} 10. Bd3 {[%clk 0:04:51.1]} 10... Qe7 {[%clk 0:04:29.2]}
11. Bg6+ {[%clk 0:04:45.1]} 11... hxg6 {[%clk 0:04:28.3]} 12. Rxh8+ {[%clk
0:04:44.8]} 12... Kd7 {[%clk 0:04:29.1]} 13. O-O-O {[%clk 0:04:42.6]} 13... a5
{[%clk 0:04:18.9]} 14. Qc2 {[%clk 0:04:28.9]} 14... Ra6 {[%clk 0:04:19.3]} 15.
Qxg6 {[%clk 0:04:26.5]} 15... Rb6 {[%clk 0:03:54.8]} 16. Rh7 {[%clk 0:04:25.6]}
16... Qd6 {[%clk 0:03:42.7]} 17. Rxg7+ {[%clk 0:04:24]} 17... Ne7 {[%clk
0:03:43]} 18. Qxf6 {[%clk 0:04:22.4]} 18... a4 {[%clk 0:03:33.9]} 19. Ne5+
{[%clk 0:04:21.6]} 19... Kd8 {[%clk 0:03:28.7]} 20. Qf8# {[%clk 0:04:19.5]} 1-0

[Event "Sera di Lampi"]
[Site "Chess.com"]
[Date "2020.04.18"]
[Round "4"]
[White "SanSecondoPR"]
[Black "SpessoInstabile"]
[Result "0-1"]
[WhiteElo "1290"]
[BlackElo "1352"]
[TimeControl "300+2"]
[EndTime "12:17:19 PDT"]
[Termination "SpessoInstabile ha vinto per abbandono"]

1. e4 {[%clk 0:05:01.9]} 1... c5 {[%clk 0:05:00.4]} 2. Nf3 {[%clk 0:05:00]} 2...
e6 {[%clk 0:05:01.5]} 3. d4 {[%clk 0:05:00.2]} 3... a6 {[%clk 0:05:03.1]} 4. Bd3
{[%clk 0:04:55]} 4... cxd4 {[%clk 0:05:04.2]} 5. Nxd4 {[%clk 0:04:54.7]} 5...
Qc7 {[%clk 0:05:05]} 6. O-O {[%clk 0:04:52.2]} 6... e5 {[%clk 0:05:06.2]} 7. Nf5
{[%clk 0:04:46.5]} 7... Nf6 {[%clk 0:05:06.1]} 8. Nc3 {[%clk 0:04:42.8]} 8... d6
{[%clk 0:05:07.1]} 9. Bg5 {[%clk 0:04:35.9]} 9... Bxf5 {[%clk 0:05:05.1]} 10.
exf5 {[%clk 0:04:31.6]} 10... Nbd7 {[%clk 0:05:06]} 11. f4 {[%clk 0:04:23.9]}
11... h6 {[%clk 0:05:06.8]} 12. Bh4 {[%clk 0:04:21.5]} 12... Be7 {[%clk
0:05:00]} 13. fxe5 {[%clk 0:04:19.9]} 13... dxe5 {[%clk 0:05:00.2]} 14. Ne4
{[%clk 0:04:09.2]} 14... O-O {[%clk 0:04:58.9]} 15. g4 {[%clk 0:03:56.1]} 15...
Nxe4 {[%clk 0:04:53.9]} 16. Bxe7 {[%clk 0:03:52.7]} 16... Rfe8 {[%clk
0:04:49.3]} 17. Ba3 {[%clk 0:03:16.9]} 17... Qb6+ {[%clk 0:04:47]} 18. Kh1
{[%clk 0:03:06.8]} 18... Nf2+ {[%clk 0:04:47.8]} 19. Rxf2 {[%clk 0:03:02.2]}
19... Qxf2 {[%clk 0:04:48.5]} 20. Be4 {[%clk 0:02:44]} 20... Nf6 {[%clk
0:04:47.6]} 21. Bg2 {[%clk 0:02:28.2]} 21... Rad8 {[%clk 0:04:43.8]} 22. Qc1
{[%clk 0:02:11.6]} 22... Nxg4 {[%clk 0:04:42.5]} 23. f6 {[%clk 0:01:56.1]} 23...
Nxf6 {[%clk 0:04:41.2]} 24. c4 {[%clk 0:01:39.9]} 24... Rd2 {[%clk 0:04:41.4]}
25. Qg1 {[%clk 0:01:32.7]} 25... Qf4 {[%clk 0:04:21.9]} 26. Rf1 {[%clk
0:01:25.7]} 26... Qxc4 {[%clk 0:04:18.1]} 27. Bxb7 {[%clk 0:01:11.1]} 27... Red8
{[%clk 0:04:12.3]} 28. Rxf6 {[%clk 0:01:05.2]} 28... Rd1 {[%clk 0:04:07.9]} 29.
Rf1 {[%clk 0:01:01.2]} 29... Rxf1 {[%clk 0:03:55.5]} 30. Bxa6 {[%clk 0:00:39]}
30... Rxg1+ {[%clk 0:03:54.9]} 31. Kxg1 {[%clk 0:00:36.3]} 31... Rd1+ {[%clk
0:03:54.5]} 32. Kf2 {[%clk 0:00:30.5]} 32... Qxa6 {[%clk 0:03:54]} 0-1

[Event "Sera di Lampi"]
[Site "Chess.com"]
[Date "2020.04.18"]
[Round "4"]
[White "BAKR1980"]
[Black "rob_fio"]
[Result "0-1"]
[WhiteElo "1565"]
[BlackElo "1660"]
[TimeControl "300+2"]
[EndTime "12:19:06 PDT"]
[Termination "rob_fio ha vinto per abbandono"]

1. e4 {[%clk 0:05:01.9]} 1... d6 {[%clk 0:04:51.7]} 2. d4 {[%clk 0:05:01.5]}
2... Nf6 {[%clk 0:04:52.7]} 3. Nc3 {[%clk 0:05:01.6]} 3... Nbd7 {[%clk
0:04:53.7]} 4. Bg5 {[%clk 0:05:01.9]} 4... e5 {[%clk 0:04:50]} 5. Bc4 {[%clk
0:04:57.6]} 5... c6 {[%clk 0:04:47.8]} 6. Nf3 {[%clk 0:04:52.2]} 6... h6 {[%clk
0:04:48.2]} 7. Bh4 {[%clk 0:04:45]} 7... Be7 {[%clk 0:04:47.7]} 8. Qd2 {[%clk
0:04:19.4]} 8... Qc7 {[%clk 0:04:48.4]} 9. O-O-O {[%clk 0:04:11.2]} 9... b5
{[%clk 0:04:48.5]} 10. Bd3 {[%clk 0:04:02.2]} 10... a5 {[%clk 0:04:47.1]} 11.
dxe5 {[%clk 0:03:57.3]} 11... dxe5 {[%clk 0:04:47.4]} 12. Bxb5 {[%clk
0:03:42.8]} 12... cxb5 {[%clk 0:04:41.7]} 13. Nxb5 {[%clk 0:03:43.1]} 13... Qc6
{[%clk 0:04:21.3]} 14. Nc3 {[%clk 0:03:29.1]} 14... Bb4 {[%clk 0:04:11]} 15.
Bxf6 {[%clk 0:03:26.3]} 15... gxf6 {[%clk 0:04:06.7]} 16. Nh4 {[%clk 0:03:20.1]}
16... Bxc3 {[%clk 0:04:01.3]} 17. bxc3 {[%clk 0:03:20.3]} 17... Rb8 {[%clk
0:03:57.7]} 18. Nf5 {[%clk 0:03:13.5]} 18... Kf8 {[%clk 0:03:35.5]} 19. g4
{[%clk 0:02:49.9]} 19... Qb5 {[%clk 0:03:29.6]} 20. Qd6+ {[%clk 0:02:49.3]}
20... Kg8 {[%clk 0:03:26.5]} 21. Ne7+ {[%clk 0:02:36.1]} 21... Kh7 {[%clk
0:03:26.3]} 22. Nxc8 {[%clk 0:01:58.7]} 22... Rhxc8 {[%clk 0:03:04.9]} 23. g5
{[%clk 0:01:06.9]} 23... hxg5 {[%clk 0:03:00.9]} 24. h4 {[%clk 0:01:06.3]} 24...
g4 {[%clk 0:02:57.7]} 25. Rdg1 {[%clk 0:01:05.1]} 25... g3 {[%clk 0:02:36.8]}
26. Kd2 {[%clk 0:00:29.1]} 26... Nc5 {[%clk 0:02:11.9]} 27. Qxf6 {[%clk
0:00:24.8]} 27... Nxe4+ {[%clk 0:02:12.7]} 28. Ke3 {[%clk 0:00:23.4]} 28... Nxf6
{[%clk 0:02:14.6]} 29. Rxg3 {[%clk 0:00:23.6]} 29... Rxc3+ {[%clk 0:02:12.6]}
0-1

[Event "Sera di Lampi"]
[Site "Chess.com"]
[Date "2020.04.18"]
[Round "4"]
[White "mr6701"]
[Black "crippo"]
[Result "1/2-1/2"]
[WhiteElo "1970"]
[BlackElo "1580"]
[TimeControl "300+2"]
[EndTime "12:19:23 PDT"]
[Termination "Patta d'accordo"]

1. e4 {[%clk 0:05:01.9]} 1... e5 {[%clk 0:04:10.6]} 2. Nf3 {[%clk 0:05:00.7]}
2... Nc6 {[%clk 0:04:09.3]} 3. Bc4 {[%clk 0:05:00.9]} 3... Be7 {[%clk
0:04:09.2]} 4. d4 {[%clk 0:04:54.9]} 4... exd4 {[%clk 0:04:09.1]} 5. Nxd4 {[%clk
0:04:55.9]} 5... Nxd4 {[%clk 0:04:08.8]} 6. Qxd4 {[%clk 0:04:56.6]} 6... d6
{[%clk 0:04:10]} 7. O-O {[%clk 0:04:53.1]} 7... Nf6 {[%clk 0:04:08.5]} 8. Nc3
{[%clk 0:04:53.3]} 8... O-O {[%clk 0:04:08.2]} 9. Nd5 {[%clk 0:04:47.2]} 9...
Nxd5 {[%clk 0:04:06.3]} 10. Qxd5 {[%clk 0:04:48.2]} 10... Rb8 {[%clk 0:04:03.3]}
11. c3 {[%clk 0:04:47.7]} 11... Be6 {[%clk 0:04:03.3]} 12. Qd3 {[%clk
0:04:48.5]} 12... Bxc4 {[%clk 0:04:01.1]} 13. Qxc4 {[%clk 0:04:50.4]} 13... a6
{[%clk 0:04:01.4]} 14. Bf4 {[%clk 0:04:48.4]} 14... Qd7 {[%clk 0:03:57]} 15.
Rfe1 {[%clk 0:04:46.2]} 15... Rfc8 {[%clk 0:03:56.2]} 16. Rad1 {[%clk
0:04:46.5]} 16... Qe6 {[%clk 0:03:47.6]} 17. Qa4 {[%clk 0:04:39.4]} 17... Bf6
{[%clk 0:03:18.3]} 18. Bg3 {[%clk 0:04:33.2]} 18... Be5 {[%clk 0:03:17.9]} 19.
f4 {[%clk 0:04:33.5]} 19... Bf6 {[%clk 0:03:18.2]} 20. e5 {[%clk 0:04:22]} 20...
dxe5 {[%clk 0:03:16.6]} 21. fxe5 {[%clk 0:04:20.6]} 21... Be7 {[%clk 0:03:15.6]}
22. Kh1 {[%clk 0:03:43.5]} 22... Rd8 {[%clk 0:03:14.6]} 23. a3 {[%clk
0:03:35.8]} 23... Rxd1 {[%clk 0:03:07.7]} 24. Rxd1 {[%clk 0:03:35.7]} 24... c6
{[%clk 0:03:01.2]} 25. Qe4 {[%clk 0:03:27]} 25... Rd8 {[%clk 0:02:58.4]} 26.
Rxd8+ {[%clk 0:03:26.5]} 26... Bxd8 {[%clk 0:02:58.5]} 27. h3 {[%clk 0:03:24.8]}
27... Qd7 {[%clk 0:02:42.6]} 28. Qb4 {[%clk 0:03:17.9]} 28... b5 {[%clk
0:02:26.9]} 29. a4 {[%clk 0:03:14.8]} 29... Qd1+ {[%clk 0:02:25.2]} 30. Kh2
{[%clk 0:03:14.8]} 30... Bb6 {[%clk 0:02:21]} 31. Bf4 {[%clk 0:02:56.9]} 31...
Bg1+ {[%clk 0:02:12.2]} 32. Kg3 {[%clk 0:02:53.7]} 32... Qe1+ {[%clk 0:02:09.3]}
33. Kg4 {[%clk 0:02:50.4]} 33... Qe2+ {[%clk 0:02:05.5]} 34. Kh4 {[%clk
0:02:28.5]} 34... h6 {[%clk 0:01:56.1]} 35. Qe7 {[%clk 0:02:11.3]} 35... Bf2+
{[%clk 0:01:30.9]} 36. g3 {[%clk 0:01:59.6]} 36... g5+ {[%clk 0:01:12.1]} 37.
Bxg5 {[%clk 0:02:00.4]} 37... hxg5+ {[%clk 0:01:13]} 38. Qxg5+ {[%clk
0:02:01.6]} 38... Kh7 {[%clk 0:01:10.9]} 39. Qf5+ {[%clk 0:01:59.5]} 39... Kg7
{[%clk 0:01:08.3]} 40. Qg5+ {[%clk 0:01:56.7]} 40... Kf8 {[%clk 0:01:07.8]} 41.
Qd8+ {[%clk 0:01:57.3]} 41... Kg7 {[%clk 0:01:08.8]} 42. Qg5+ {[%clk 0:01:57.8]}
42... Kf8 {[%clk 0:01:09.7]} 1/2-1/2